[Event "23nd Wasselonne Open 2018"]
[Site "Wasselonne"]
[Date "2018.08.03"]
[Round "4"]
[White "Lerch, Patrice"]
[Black "Luba, Lukasz"]
[Result "1-0"]
[ECO "B10"]
[WhiteElo "2388"]
[BlackElo "2117"]
[Annotator "NA"]
[PlyCount "107"]
[EventDate "2018.08.02"]
[EventType "swiss"]
[EventCountry "FRA"]
[SourceTitle "playchess.com"]
[Source "ChessBase"]
[SourceQuality "1"]
[TimeControl "5400+30"]

1. e4 {[%emt 0:00:00]} c6 {[%emt 0:00:34]} 2. Ne2 {[%emt 0:01:10]} d5 {[%emt 0:00:22]} 3. e5 {[%emt 0:00:08]} f5 {[%emt 0:05:33]} 4. Nf4 {[%emt 0:03:57]} g6 {[%emt 0:00:02]} 5. d4 {[%emt 0:00:25]} Nh6 {[%emt 0:02:47]} 6. c4 $16 {[%emt 0:02:44]} e6 {[%emt 0:00:10]} 7. Nc3 {[%emt 0:00:06]} Bd7 {[%emt 0:06:24]} 8. Qb3 {[%emt 0:06:36]} Na6 {[%emt 0:09:48]} 9. c5 {[%emt 0:04:17]} Nc7 {[%emt 0:03:47]} 10. Qxb7 {[%emt 0:01:55]} Kf7 {[%emt 0:09:49]} 11. Nh3 {[%emt 0:03:31]} Ng8 {[%emt 0:03:22]} 12. Qb3 {[%emt 0:05:01]} Bh6 {[%emt 0:01:38]} 13. Qd1 {[%emt 0:01:21]} Kg7 {[%emt 0:01:15]} 14. Be2 {[%emt 0:01:56]} Bxc1 {[%emt 0:00:09]} 15. Qxc1 {[%emt 0:00:28]} h6 {[%emt 0:00:47]} 16. f4 {[%emt 0:00:56]} h5 {[%emt 0:01:56]} 17. O-O {[%emt 0:00:38]} Nh6 {[%emt 0:00:29]} 18. Qd2 {[%emt 0:00:47]} Qe7 {[%emt 0:01:06]} 19. b4 {[%emt 0:00:51]} Rhb8 {[%emt 0:00:28]} 20. Rfb1 {[%emt 0:00:07]} Rb7 {[%emt 0:00:37]} 21. Nf2 {[%emt 0:02:45]} Rab8 {[%emt 0:04:22]} 22. a3 {[%emt 0:01:17]} Ng4 {[%emt 0:01:20]} 23. Nd3 {[%emt 0:06:25]} Rh8 {[%emt 0:00:58]} 24. Bf1 {[%emt 0:01:00]} Qh4 {[%emt 0:00:32]} 25. g3 {[%emt 0:04:04]} Qe7 {[%emt 0:00:13]} 26. h4 {[%emt 0:00:06]} Rhb8 {[%emt 0:00:34]} 27. Nc1 {[%emt 0:00:16]} Rf8 {[%emt 0:02:09]} 28. Nb3 {[%emt 0:00:38]} Rbb8 {[%emt 0:02:55]} 29. Bd3 {[%emt 0:00:30]} Rf7 {[%emt 0:00:48]} 30. Na5 {[%emt 0:00:22]} Rbf8 {[%emt 0:02:42]} 31. Ne2 {[%emt 0:05:38]} Rb8 {[%emt 0:01:52]} 32. Rb2 {[%emt 0:00:29]} Qf8 {[%emt 0:01:03]} 33. Kg2 {[%emt 0:01:05]} Re7 {[%emt 0:01:30]} 34. Rab1 {[%emt 0:01:04]} Ree8 {[%emt 0:00:15]} 35. Nc3 {[%emt 0:00:39]} Nb5 {[%emt 0:02:05]} 36. a4 {[%emt 0:02:47]} Nxd4 {[%emt 0:04:31]} 37. Ba6 {[%emt 0:01:18]} Rxb4 {[%emt 0:02:19]} 38. Rxb4 {[%emt 0:00:06]} Nc2 {[%emt 0:00:06]} 39. Rb7 {[%emt 0:02:20]} Nce3+ {[%emt 0:00:56]} 40. Kh1 {[%emt 0:00:34]} Re7 {[%emt 0:00:02]} 41. Be2 {[%emt 0:01:03]} Rf7 {[%emt 0:01:01]} 42. Bxg4 {[%emt 0:00:36]} Nxg4 {[%emt 0:00:02]} 43. Rxa7 {[%emt 0:00:34]} g5 {[%emt 0:00:22]} 44. Rbb7 {[%emt 0:00:57]} Be8 {[%emt 0:00:02]} 45. fxg5 {[%emt 0:00:36]} Qxc5 {[%emt 0:00:07]} 46. Nb3 {[%emt 0:04:34]} Qc4 {[%emt 0:00:49]} 47. Kg2 {[%emt 0:00:04]} Kg6 {[%emt 0:01:13]} 48. Qd4 {[%emt 0:00:27]} Rxb7 {[%emt 0:00:17]} 49. Rxb7 {[%emt 0:00:38]} c5 {[%emt 0:00:01]} 50. Qxc4 {[%emt 0:00:53]} dxc4 {[%emt 0:00:02]} 51. Na5 {[%emt 0:00:24]} Nxe5 {[%emt 0:00:21]} 52. Ne2 {[%emt 0:00:33]} f4 {[%emt 0:00:35]} 53. Nxf4+ {[%emt 0:00:08]} Kf5 {[%emt 0:00:01]} 54. Rc7 {[%emt 0:00:37]} 1-0

[Event "23nd Wasselonne Open 2018"]
[Site "Wasselonne"]
[Date "2018.08.03"]
[Round "4"]
[White "Msellek, Ilyass"]
[Black "Bellahcene, Bilel"]
[Result "1/2-1/2"]
[ECO "D05"]
[WhiteElo "2242"]
[BlackElo "2507"]
[Annotator "RC"]
[PlyCount "43"]
[EventDate "2018.08.02"]
[EventType "swiss"]
[EventCountry "FRA"]
[SourceTitle "playchess.com"]
[Source "ChessBase"]
[SourceQuality "1"]
[TimeControl "5400+30"]

1. d4 {[%emt 0:00:00]} Nf6 {[%emt 0:00:00]} 2. Nf3 {[%emt 0:00:04]} e6 {[%emt 0:00:06]} 3. e3 {[%emt 0:00:08]} d5 {[%emt 0:00:38]} 4. Bd3 {[%emt 0:00:08]} c5 {[%emt 0:01:00]} 5. b3 {[%emt 0:00:04]} Nbd7 {[%emt 0:02:44]} 6. Bb2 {[%emt 0:00:13]} Be7 {[%emt 0:00:26]} 7. Nbd2 {[%emt 0:00:12]} b6 {[%emt 0:00:15]} 8. O-O {[%emt 0:00:28]} Bb7 {[%emt 0:00:02]} 9. Ne5 {[%emt 0:01:15]} O-O {[%emt 0:02:24]} 10. f4 {[%emt 0:00:17]} Ne4 {[%emt 0:10:42]} 11. Nxe4 {[%emt 0:05:05]} dxe4 {[%emt 0:00:10]} 12. Bc4 {[%emt 0:00:13]} Nxe5 {[%emt 0:08:30]} 13. dxe5 {[%emt 0:03:01]} Qxd1 {[%emt 0:03:08]} 14. Rfxd1 {[%emt 0:04:07]} Bc6 {[%emt 0:00:21]} 15. a4 {[%emt 0:02:54]} a6 {[%emt 0:00:10]} 16. Be2 {[%emt 0:04:29]} g6 {[%emt 0:05:39]} 17. Kf2 {[%emt 0:04:07]} h5 {[%emt 0:00:44]} 18. g3 {[%emt 0:02:13]} b5 {[%emt 0:00:25]} 19. axb5 {[%emt 0:01:25]} axb5 {[%emt 0:00:02]} 20. Rxa8 {[%emt 0:03:41]} Rxa8 {[%emt 0:00:17]} 21. Ra1 {[%emt 0:00:09]} Rxa1 {[%emt 0:00:21]} 22. Bxa1 {[%emt 0:00:00]} 1/2-1/2

[Event "23nd Wasselonne Open 2018"]
[Site "Wasselonne"]
[Date "2018.08.03"]
[Round "4"]
[White "Briet, Antoine"]
[Black "Stephan, Victor"]
[Result "1/2-1/2"]
[ECO "C42"]
[WhiteElo "2208"]
[BlackElo "2361"]
[Annotator "NA"]
[PlyCount "123"]
[EventDate "2018.08.02"]
[EventType "swiss"]
[EventCountry "FRA"]
[SourceTitle "playchess.com"]
[Source "ChessBase"]
[SourceQuality "1"]
[TimeControl "5400+30"]

1. e4 {[%emt 0:00:00]} e5 {[%emt 0:00:00]} 2. Nf3 {[%emt 0:00:00]} Nf6 {[%emt 0:00:00]} 3. Nxe5 {[%emt 0:00:00]} d6 {[%emt 0:00:10]} 4. Nf3 {[%emt 0:00:04]} Nxe4 {[%emt 0:00:08]} 5. d4 {[%emt 0:00:14]} d5 {[%emt 0:00:59]} 6. Bd3 {[%emt 0:00:12]} Nc6 {[%emt 0:00:42]} 7. O-O {[%emt 0:00:13]} Be7 {[%emt 0:00:05]} 8. c4 {[%emt 0:00:08]} Nb4 {[%emt 0:00:08]} 9. Be2 {[%emt 0:00:07]} O-O {[%emt 0:00:31]} 10. Nc3 {[%emt 0:00:19]} Bf5 {[%emt 0:01:03]} 11. a3 {[%emt 0:00:29]} Nxc3 {[%emt 0:00:23]} 12. bxc3 {[%emt 0:00:07]} Nc6 $1 {[%emt 0:00:06]} 13. Re1 {[%emt 0:00:14]} Re8 {[%emt 0:02:15] LiveBook: 432 Games} 14. Bf4 {[%emt 0:00:22]} Rc8 $11 {[%emt 0:04:02]} 15. cxd5 {[%emt 0:06:04]} Qxd5 {[%emt 0:00:10]} 16. h3 {[%emt 0:03:38]} h6 {[%emt 0:00:06]} 17. Nd2 {[%emt 0:00:52]} Bf6 {[%emt 0:04:51]} 18. Bf3 {[%emt 0:02:07]} Rxe1+ {[%emt 0:07:16]} 19. Qxe1 {[%emt 0:00:11]} Qd7 {[%emt 0:01:57]} 20. Ne4 {[%emt 0:01:47]} Bxe4 {[%emt 0:03:57]} 21. Qxe4 {[%emt 0:03:01]} Re8 {[%emt 0:00:40]} 22. Qd5 {[%emt 0:00:29]} Qe7 {[%emt 0:01:25]} 23. Rb1 {[%emt 0:05:25]} Nd8 {[%emt 0:06:02]} 24. Qa5 {[%emt 0:02:34]} Ne6 {[%emt 0:02:22]} 25. Bg3 {[%emt 0:00:39]} b6 {[%emt 0:12:42]} 26. Qxa7 {[%emt 0:00:24]} Bh4 {[%emt 0:00:03]} 27. Bc6 {[%emt 0:06:14]} Rd8 {[%emt 0:01:48]} 28. Bxh4 {[%emt 0:01:35]} Qxh4 {[%emt 0:00:02]} 29. Re1 {[%emt 0:05:56]} Qf4 {[%emt 0:00:14]} 30. Re3 {[%emt 0:18:16]} Qd6 {[%emt 0:02:12]} 31. Qa4 {[%emt 0:05:19]} Nf4 {[%emt 0:00:20]} 32. Bf3 {[%emt 0:01:37]} Qg6 {[%emt 0:06:44]} 33. Re8+ {[%emt 0:00:48]} Rxe8 {[%emt 0:00:02]} 34. Qxe8+ {[%emt 0:00:10]} Kh7 {[%emt 0:00:03]} 35. Be4 {[%emt 0:00:41]} f5 {[%emt 0:00:26]} 36. Qxg6+ {[%emt 0:00:08]} Kxg6 {[%emt 0:00:05]} 37. Bf3 {[%emt 0:00:41]} Kf6 {[%emt 0:02:08]} 38. Kf1 {[%emt 0:00:49]} g5 {[%emt 0:01:42]} 39. g3 {[%emt 0:01:56]} Ng6 {[%emt 0:09:39]} 40. Ke2 {[%emt 0:01:26]} Ke6 {[%emt 0:00:05]} 41. Kd3 {[%emt 0:00:31]} Kd6 {[%emt 0:00:05]} 42. Kc4 {[%emt 0:01:33]} Nf8 {[%emt 0:03:12]} 43. Bb7 {[%emt 0:02:34]} f4 {[%emt 0:08:24]} 44. Bc8 {[%emt 0:02:04]} Ng6 {[%emt 0:02:07]} 45. Bf5 {[%emt 0:00:20]} Ne7 {[%emt 0:01:09]} 46. Be4 {[%emt 0:00:06]} fxg3 {[%emt 0:00:23]} 47. fxg3 {[%emt 0:00:06]} c6 {[%emt 0:02:10]} 48. a4 {[%emt 0:03:33]} Ng8 {[%emt 0:01:30]} 49. Kb4 {[%emt 0:00:35]} Nf6 {[%emt 0:00:03]} 50. Bf3 {[%emt 0:00:08]} h5 {[%emt 0:00:26]} 51. c4 {[%emt 0:00:31]} g4 {[%emt 0:00:35]} 52. hxg4 {[%emt 0:00:21]} hxg4 {[%emt 0:00:02]} 53. c5+ {[%emt 0:00:30]} bxc5+ {[%emt 0:00:17]} 54. dxc5+ {[%emt 0:00:10]} Kc7 {[%emt 0:00:09]} 55. Be2 {[%emt 0:02:56]} Ne4 {[%emt 0:00:06]} 56. Bxg4 {[%emt 0:00:18]} Nxg3 {[%emt 0:00:03]} 57. Kc4 {[%emt 0:01:56]} Ne4 {[%emt 0:00:53]} 58. Kd4 {[%emt 0:01:33]} Nf6 {[%emt 0:00:32]} 59. Be6 {[%emt 0:02:06]} Nh7 {[%emt 0:02:55]} 60. a5 {[%emt 0:07:59]} Ng5 {[%emt 0:00:51]} 61. Bg4 {[%emt 0:00:12]} Kb7 {[%emt 0:00:49]} 62. Ke5 {[%emt 0:02:39]} 1/2-1/2

[Event "23nd Wasselonne Open 2018"]
[Site "Wasselonne"]
[Date "2018.08.03"]
[Round "4"]
[White "Thomas, Anysia"]
[Black "Mohota, Nisha"]
[Result "0-1"]
[ECO "E10"]
[WhiteElo "2168"]
[BlackElo "2268"]
[Annotator "NA"]
[PlyCount "74"]
[EventDate "2018.08.02"]
[EventType "swiss"]
[EventCountry "FRA"]
[SourceTitle "playchess.com"]
[Source "ChessBase"]
[SourceQuality "1"]
[TimeControl "5400+30"]

1. d4 {[%emt 0:00:00]} Nf6 {[%emt 0:00:33]} 2. c4 {[%emt 0:00:00]} e6 {[%emt 0:00:32]} 3. Nf3 {[%emt 0:00:00]} d5 {[%emt 0:00:42]} 4. g3 {[%emt 0:00:00]} Bb4+ {[%emt 0:00:47]} 5. Bd2 {[%emt 0:00:30]} Bd6 {[%emt 0:01:10]} 6. Bg2 {[%emt 0:00:20]} c6 {[%emt 0:00:23]} 7. Qc2 {[%emt 0:01:18]} Ne4 {[%emt 0:03:38] LiveBook: 4 Games} 8. Nc3 {[%emt 0:01:55]} Nxd2 {[%emt 0:04:01]} 9. Nxd2 {[%emt 0:00:05]} f5 $11 {[%emt 0:00:32]} 10. O-O {[%emt 0:07:37]} O-O {[%emt 0:04:45]} 11. c5 {[%emt 0:03:29]} Bc7 {[%emt 0:03:07]} 12. f4 {[%emt 0:00:12]} Nd7 {[%emt 0:07:57]} 13. Nf3 {[%emt 0:01:39]} Qe7 {[%emt 0:00:07]} 14. b4 {[%emt 0:02:20]} Nf6 {[%emt 0:02:12]} 15. Ne5 {[%emt 0:03:39]} Bd7 {[%emt 0:01:04]} 16. Qd3 {[%emt 0:04:24]} Be8 {[%emt 0:01:37]} 17. e3 {[%emt 0:11:29]} g5 18. Rab1 {[%emt 0:12:05]} b6 {[%emt 0:19:13]} 19. Qa6 {[%emt 0:08:56]} bxc5 {[%emt 0:16:55]} 20. bxc5 {[%emt 0:01:52]} Bxe5 {[%emt 0:00:38]} 21. fxe5 {[%emt 0:02:38]} Ng4 {[%emt 0:01:13]} 22. Rb7 {[%emt 0:12:23]} Qd8 {[%emt 0:02:25]} 23. Rxa7 {[%emt 0:07:21]} Rxa7 {[%emt 0:00:49]} 24. Qxa7 {[%emt 0:00:04]} Nxe3 {[%emt 0:01:21]} 25. Rb1 {[%emt 0:00:18]} g4 {[%emt 0:01:21]} 26. Ne2 {[%emt 0:04:14]} f4 {[%emt 0:06:27]} 27. Nxf4 {[%emt 0:03:10]} Qg5 {[%emt 0:11:29]} 28. Rb7 {[%emt 0:09:26]} Qf5 {[%emt 0:01:08]} 29. Qb6 {[%emt 0:00:14]} Nxg2 {[%emt 0:03:57]} 30. Kxg2 {[%emt 0:00:23]} Qe4+ {[%emt 0:02:27]} 31. Kg1 {[%emt 0:00:44]} Qxd4+ {[%emt 0:00:29]} 32. Kf1 {[%emt 0:01:53]} Qd1+ {[%emt 0:00:28]} 33. Kf2 {[%emt 0:00:28]} Qd2+ {[%emt 0:00:29]} 34. Kg1 {[%emt 0:01:15]} Qe1+ {[%emt 0:01:03]} 35. Kg2 {[%emt 0:00:05]} Bg6 {[%emt 0:00:23]} 36. Rg7+ {[%emt 0:01:02]} Kxg7 {[%emt 0:00:09]} 37. Qa7+ {[%emt 0:00:31]} Kg8 {[%emt 0:00:48]} 0-1